bitfinex/quotes_ETHUSD_20220305
["timestamp","ask_amount","ask_price","bid_price","bid_amount"]
[1646514166782,0.005237,2667.4,2667.3,0.54]
[1646514166981,0.01185502,2667.4,2667.3,0.72330862]
[1646514167803,0.01185502,2667.4,2667.3,0.53590862]
[1646514169408,0.01185502,2667.4,2667.3,0.53483151]
[1646514171754,0.01185502,2667.4,2667.3,2.03483151]
[1646514176006,0.01185502,2667.4,2667.3,1.5]
[1646514176316,1.00685502,2667.4,2667.3,1.5]
[1646514179758,1.00685502,2667.4,2667.3,2.04]
[1646514184116,3.5,2668.5,2667.4,5.0]
[1646514184416,1.1874,2668.9,2667.5,4.0117931]
[1646514184622,1.53640254,2668.8,2667.9,5.81057]
[1646514184812,0.68275437,2669.6,2668.6,6.745]
[1646514185010,1.53622877,2669.5,2668.7,0.54]
[1646514185210,0.68275437,2669.9,2668.8,3.5]
[1646514185211,2.42613241,2669.4,2668.8,3.5]
[1646514185413,1.53622877,2669.3,2668.9,0.54]
[1646514186053,0.89113278,2669.4,2668.9,0.54]
[1646514186661,0.89113278,2669.4,2668.9,3.9804741]
[1646514186860,0.88990364,2669.4,2668.9,3.9804741]
[1646514187057,0.88990364,2669.4,2668.9,4.9804741]
[1646514187258,0.8911328,2669.4,2668.9,4.9804741]
[1646514187462,1.28596734,2669.4,2668.9,1.54]
[1646514187662,1.53597157,2669.3,2669.1,1.5]
[1646514189061,0.89344972,2669.4,2669.1,1.5]
[1646514189461,1.53601243,2669.3,2669.1,1.5]
[1646514190112,0.89356936,2669.4,2669.1,1.5]
[1646514190512,0.88990364,2669.4,2669.1,1.5]
[1646514190709,0.89356937,2669.4,2669.1,1.5]
[1646514191712,0.88990364,2669.4,2669.1,1.5]
[1646514191915,0.89356937,2669.4,2669.1,1.5]
[1646514192912,0.88990364,2669.4,2669.1,1.5]
[1646514193114,0.89331688,2669.4,2669.1,1.5]
[1646514194151,0.88990364,2669.4,2669.1,1.5]
[1646514194352,0.89331688,2669.4,2669.1,1.5]
[1646514195354,0.88990364,2669.4,2669.1,1.5]
[1646514195554,0.89331688,2669.4,2669.1,1.5]
[1646514196557,0.88990364,2669.4,2669.1,1.5]
[1646514196758,0.89319561,2669.4,2669.1,1.5]
[1646514197803,0.88990364,2669.4,2669.1,1.5]
[1646514198003,0.89319561,2669.4,2669.1,1.5]
[1646514199008,0.88990364,2669.4,2669.1,1.5]
[1646514199207,0.89319561,2669.4,2669.1,1.5]
[1646514200209,0.88990364,2669.4,2669.1,1.5]
[1646514200410,0.89320492,2669.4,2669.1,1.5]
[1646514201453,0.88990364,2669.4,2669.1,1.5]
[1646514201752,0.89320492,2669.4,2669.1,1.5]
[1646514202555,0.88990364,2669.4,2669.1,1.5]
[1646514202753,0.89320492,2669.4,2669.1,1.5]
[1646514203760,0.88990364,2669.4,2669.1,1.5]
[1646514203956,0.89320399,2669.4,2669.1,1.5]
[1646514205021,0.88990364,2669.4,2669.1,1.5]
[1646514205215,0.89320399,2669.4,2669.1,1.5]
[1646514205414,0.89320399,2669.4,2668.7,3.5316]
[1646514205415,0.13845769,2669.0,2668.7,3.5316]
[1646514213717,3.83845769,2669.0,2668.7,3.5316]
[1646514218660,3.83845769,2669.0,2668.7,4.0716]
[1646514222508,3.83845769,2669.0,2668.7,5.0085728]
[1646514222909,3.83845769,2669.0,2668.8,3.44557775]
[1646514223209,3.83845769,2669.0,2668.9,0.54]
[1646514223463,3.83845769,2669.0,2668.9,0.7272]
[1646514223957,3.83845769,2669.0,2668.9,4.17231139]
[1646514224157,3.83845769,2669.0,2668.9,3.98511139]
[1646514224357,3.83845769,2669.0,2668.9,4.98511139]
[1646514225972,3.83845769,2669.0,2668.9,1.54]
[1646514226464,3.83845769,2669.0,2668.9,0.54]
[1646514228108,2.5,2668.9,2668.7,1.0]
[1646514228311,2.0,2668.5,2668.2,1.41068136]
[1646514228515,0.01258849,2668.4,2667.7,1.37963639]
[1646514228713,3.02927676,2668.4,2667.4,1.76780824]
[1646514228915,3.02927676,2668.4,2667.4,0.38817185]
[1646514228916,0.012878,2667.8,2667.4,0.38817185]
[1646514229115,1.21239112,2667.7,2667.4,0.3749]
[1646514229314,1.21730542,2667.7,2667.4,0.01325999]
[1646514229514,1.53667243,2667.6,2667.4,0.01325999]
[1646514229714,0.0049143,2667.6,2667.4,0.01325999]
[1646514230114,0.0049143,2667.6,2666.9,0.02048691]
[1646514230316,5.52566583,2667.6,2666.9,0.02048691]
[1646514230515,5.52566583,2667.6,2667.2,0.003315]
[1646514230715,1.53701859,2667.5,2667.2,0.003315]
[1646514230963,4.04,2667.4,2667.2,0.003315]
[1646514231169,3.5,2667.3,2667.2,0.003315]
[1646514231362,4.0449143,2667.3,2667.2,0.003315]
[1646514231559,4.0449143,2667.3,2666.9,0.0189385]
[1646514231560,5.0449143,2667.3,2666.9,0.0189385]
[1646514231760,5.0449143,2667.3,2667.2,0.00331491]
[1646514232561,5.0449143,2667.3,2666.9,0.0189385]
[1646514232766,5.0449143,2667.3,2667.1,0.00331538]
[1646514232966,3.5,2667.2,2667.1,0.00331538]
[1646514233172,4.0449143,2667.2,2667.1,0.00331538]
[1646514233966,4.0449143,2667.2,2667.0,0.00331546]
[1646514234809,3.5,2667.1,2667.0,0.00331546]
[1646514235008,3.5,2667.1,2666.9,0.0189385]
[1646514235009,3.5049143,2667.1,2666.9,0.0189385]
[1646514235210,3.5049143,2667.1,2667.0,0.0033155]
[1646514236010,4.0449143,2667.1,2667.0,0.0033155]
[1646514236215,4.0449143,2667.1,2666.9,0.0189385]
[1646514236411,4.0449143,2667.1,2666.9,0.02225401]
[1646514236715,0.5449143,2667.1,2666.9,0.02225401]
[1646514237115,3.5,2667.0,2666.9,0.02225401]
[1646514237314,3.5,2667.0,2666.9,0.0189385]
[1646514237315,3.5049143,2667.0,2666.9,0.0189385]
[1646514237716,0.05510089,2666.8,2666.1,0.02984249]
[1646514237915,0.54,2666.7,2666.1,0.02984249]
[1646514238113,3.5,2666.6,2666.1,0.02984249]
[1646514238354,0.96169474,2666.5,2666.1,0.02984249]
[1646514241265,0.96169474,2666.5,2666.2,0.00354902]
[1646514242120,0.96169474,2666.5,2666.1,0.02984249]
[1646514242511,0.96169474,2666.5,2666.2,0.00354898]
[1646514243314,0.96169474,2666.5,2666.1,0.02868104]
[1646514243714,0.96169474,2666.5,2666.2,0.00353708]
[1646514244515,0.96169474,2666.5,2666.1,0.02868104]
[1646514244917,0.96169474,2666.5,2666.2,0.00353708]
[1646514245517,3.7,2666.5,2666.2,0.00353708]
[1646514245718,3.7,2666.5,2666.1,0.02868104]
[1646514246162,3.7,2666.5,2666.2,0.00343096]
[1646514246561,0.87361866,2666.4,2666.2,0.00343096]
[1646514246963,0.87361866,2666.4,2666.1,0.02868104]
[1646514247565,0.87361866,2666.4,2666.2,0.00343602]
[1646514249376,0.87361866,2666.4,2666.1,0.02868104]
[1646514249617,0.87361866,2666.4,2666.2,0.00330182]
[1646514250607,0.87361866,2666.4,2666.1,0.02868104]
[1646514250809,0.87361866,2666.4,2666.2,0.00330462]
[1646514251014,3.5,2666.3,2666.2,0.00330462]
[1646514251212,5.0,2666.2,2666.0,0.02804276]
[1646514251413,4.04,2666.1,2666.0,0.02804276]
[1646514251610,0.54,2666.1,2666.0,0.02804276]
[1646514251814,4.04,2666.1,2666.0,0.02804276]
[1646514252014,4.04,2666.1,2665.5,0.00154841]
[1646514252015,3.0,2666.0,2665.5,0.00154841]
[1646514252211,3.0,2666.0,2664.7,0.05231272]
[1646514252212,3.5,2666.0,2665.8,0.0154196]
[1646514252415,0.54,2665.9,2665.8,0.0154196]
[1646514252815,2.0,2665.8,2665.2,0.02005481]
[1646514253011,2.0,2665.8,2665.4,0.10111342]
[1646514253212,8.5,2665.7,2665.4,0.0511971]
[1646514253475,4.0,2665.5,2665.0,0.03981761]
[1646514253666,0.54,2665.4,2665.0,0.03981761]
[1646514253869,0.54,2665.4,2665.0,0.0382692]
[1646514254266,0.95343685,2665.2,2665.0,0.0382692]
[1646514255870,4.65343685,2665.2,2665.0,0.0382692]
[1646514256872,4.65343685,2665.2,2665.0,0.04056272]
[1646514257918,4.65343685,2665.2,2665.0,0.0382692]
[1646514258219,1.0,2665.1,2665.0,0.04200759]
[1646514259017,1.0,2665.1,2665.0,0.0382692]
[1646514262757,5.0,2665.0,2664.9,0.13355768]
[1646514262960,5.0,2665.0,2664.9,0.13718396]
[1646514263160,5.0,2665.0,2664.7,0.05231272]
[1646514263161,0.3302339,2664.8,2664.7,0.05231272]
[1646514264616,1.3302339,2664.8,2664.7,0.05231272]
[1646514267517,1.3302339,2664.8,2664.5,7.17580796]
[1646514267711,0.3302339,2664.8,2664.6,0.00349524]
[1646514268556,0.3302339,2664.8,2664.4,0.02162384]
[1646514268760,0.3302339,2664.8,2664.2,0.01369128]
[1646514270561,1.05857801,2664.4,2664.2,0.01369128]
[1646514272607,0.3302339,2664.8,2664.2,0.0174166]
[1646514273509,0.3302339,2664.8,2664.2,0.01369128]
[1646514273709,1.08628555,2664.6,2664.2,0.01369128]
[1646514274612,1.08628555,2664.6,2664.2,0.01256494]
[1646514275856,4.78628555,2664.6,2664.2,0.01256494]
[1646514276458,3.7,2664.6,2664.2,0.01256494]
[1646514277262,3.7,2664.6,2664.3,0.00372223]
[1646514277660,4.75396932,2664.6,2664.3,0.00372223]
[1646514278260,4.75396932,2664.6,2664.2,0.01256494]
[1646514278461,4.75396932,2664.6,2664.3,0.00372219]
[1646514279459,4.75396932,2664.6,2664.2,0.01256494]
[1646514279718,4.75396932,2664.6,2664.3,0.00372219]
[1646514280720,4.75396932,2664.6,2664.2,0.01256494]
[1646514280917,4.75396932,2664.6,2664.3,0.00372219]
[1646514281916,4.75396932,2664.6,2664.2,0.01256494]
[1646514282117,4.75396932,2664.6,2664.3,0.0036524]
[1646514283119,4.75396932,2664.6,2664.2,0.01256494]
[1646514283381,3.7,2664.6,2664.3,0.0036524]
[1646514284371,3.7,2664.6,2664.2,0.01256494]
[1646514284569,3.7,2664.6,2664.3,0.0036524]
[1646514285568,3.7,2664.6,2664.2,0.01256494]
[1646514285777,3.7,2664.6,2664.3,0.00348092]
[1646514286778,3.7,2664.6,2664.2,0.01256494]
[1646514286976,3.7,2664.6,2664.3,0.00335901]
[1646514287837,3.7,2664.6,2664.2,0.01256494]
[1646514288038,3.7,2664.6,2664.3,0.00335901]
[1646514289138,3.7,2664.6,2664.2,0.01256494]
[1646514289339,3.7,2664.6,2664.3,0.00335995]
[1646514290340,3.7,2664.6,2664.2,0.01256494]
[1646514290538,3.7,2664.6,2664.3,0.00337226]
[1646514291665,3.7,2664.6,2664.2,0.01256494]
[1646514291863,3.7,2664.6,2664.3,0.00337226]
[1646514292563,3.69841473,2664.6,2664.3,0.00337226]
[1646514292766,3.69841473,2664.6,2664.2,0.01256494]
[1646514292964,3.69841473,2664.6,2664.3,0.00343502]
[1646514293366,3.70332903,2664.6,2664.3,0.00343502]
[1646514293871,3.70332903,2664.6,2664.2,0.01256494]
[1646514294065,3.70332903,2664.6,2664.3,0.00332895]
[1646514295113,3.70332903,2664.6,2664.2,0.01256494]
[1646514295519,3.70332903,2664.6,2664.3,0.00332895]
[1646514296318,3.70332903,2664.6,2664.2,0.01256494]
[1646514296515,3.70332903,2664.6,2664.3,0.00350366]
[1646514297516,3.70332903,2664.6,2664.2,0.01256494]
[1646514297716,3.70332903,2664.6,2664.3,0.00350865]
[1646514298666,3.70332903,2664.6,2664.2,0.01256494]
[1646514299062,3.70332903,2664.6,2664.3,0.00350865]
[1646514299870,3.70332903,2664.6,2664.2,0.01256494]
[1646514300167,3.70332903,2664.6,2664.3,0.00350859]
[1646514301169,3.70332903,2664.6,2664.2,0.01256494]
[1646514301374,3.70332903,2664.6,2664.3,0.00350571]
[1646514302409,3.70332903,2664.6,2664.2,0.01256494]
[1646514302608,3.70332903,2664.6,2664.3,0.00350571]
[1646514303615,3.70332903,2664.6,2664.2,0.01256494]
[1646514303917,3.70332903,2664.6,2664.3,0.00350581]
[1646514304716,3.70332903,2664.6,2664.2,0.01256494]
[1646514304916,3.70332903,2664.6,2664.3,0.00351024]
[1646514305963,3.70332903,2664.6,2664.2,0.01256494]
[1646514306160,3.70332903,2664.6,2664.3,0.00351024]
[1646514307160,3.70332903,2664.6,2664.2,0.01256494]
[1646514307363,3.70332903,2664.6,2664.3,0.00351307]
[1646514308167,1.53853003,2664.5,2664.3,0.00351307]
[1646514308364,1.53853003,2664.5,2664.2,0.01256494]
[1646514308365,4.5,2664.4,2664.2,0.01256494]
[1646514308564,5.03853003,2664.3,2664.2,0.01256494]
[1646514308764,1.54344433,2664.3,2664.2,0.01256494]
[1646514312022,0.0049143,2664.3,2664.2,0.01256494]
[1646514312522,0.0049143,2664.3,2664.0,7.37308896]
[1646514312721,0.93843924,2664.1,2664.0,0.03312812]
[1646514313766,0.0049143,2664.3,2664.0,0.03312812]
[1646514314567,0.0049143,2664.3,2664.0,0.035161]
[1646514315568,0.0049143,2664.3,2664.0,0.03312812]
[1646514315767,0.0049143,2664.3,2664.0,0.0366175]
[1646514316667,0.0049143,2664.3,2664.0,0.03312812]
[1646514317125,0.0049143,2664.3,2664.0,0.0366175]
[1646514317927,0.0049143,2664.3,2664.0,0.03312812]
[1646514318229,0.0049143,2664.3,2664.0,0.03660915]
[1646514319230,0.0049143,2664.3,2663.9,0.08097316]
[1646514319428,0.0049143,2664.3,2664.0,0.00348103]
[1646514320430,0.0049143,2664.3,2663.9,0.08097316]
[1646514320629,0.0049143,2664.3,2664.0,0.00348103]
[1646514321466,0.0049143,2664.3,2663.9,0.08097316]
[1646514321865,0.0049143,2664.3,2664.0,0.00348581]
[1646514322066,0.0049143,2664.3,2664.0,0.03707965]
[1646514322665,0.0049143,2664.3,2664.0,0.03359384]
[1646514323167,0.0049143,2664.3,2664.0,0.03707965]
[1646514323972,0.0049143,2664.3,2664.0,0.03359384]
[1646514324174,0.0049143,2664.3,2664.0,0.03707965]
[1646514325219,0.0049143,2664.3,2664.0,0.57359384]
[1646514325418,0.0049143,2664.3,2664.1,3.5]
[1646514325617,0.0049143,2664.3,2664.2,0.95290914]
[1646514325817,0.0049143,2664.3,2664.2,4.99290914]
[1646514326019,0.0049143,2664.3,2664.2,5.0105065]
[1646514326221,0.0049143,2664.3,2664.2,6.0105065]
[1646514327822,0.0049143,2664.3,2664.2,2.5105065]
[1646514328662,0.0049143,2664.3,2664.2,1.5105065]
[1646514328864,0.0049143,2664.3,2664.2,2.5105065]
[1646514329665,0.0049143,2664.3,2664.2,1.5105065]
[1646514329866,0.0049143,2664.3,2664.2,2.5105065]
[1646514330665,0.0049143,2664.3,2664.2,1.5105065]
[1646514330865,0.0049143,2664.3,2664.2,2.5105065]
[1646514331365,0.0049143,2664.3,2664.2,1.5105065]
[1646514331665,0.0049143,2664.3,2664.2,2.5105065]
[1646514332113,0.0049143,2664.3,2664.2,1.5105065]
[1646514332914,3.27932903,2664.6,2664.3,2.0]
[1646514333315,3.27932903,2664.6,2664.2,2.5105065]
[1646514333514,3.27932903,2664.6,2664.2,1.5105065]
[1646514333715,3.27932903,2664.6,2664.2,2.5105065]
[1646514333915,3.27932903,2664.6,2664.2,1.5105065]
[1646514334215,3.27932903,2664.6,2664.2,2.5105065]
[1646514334416,3.27932903,2664.6,2664.2,1.5105065]
[1646514337675,3.27932903,2664.6,2664.2,0.55759736]
[1646514338075,3.27932903,2664.6,2664.2,0.55621925]
[1646514339918,3.27932903,2664.6,2664.2,0.01759736]
[1646514358873,3.27932903,2664.6,2664.2,0.01549736]
[1646514360478,3.27932903,2664.6,2664.2,0.55549736]
[1646514360673,3.27932903,2664.6,2664.3,1.8284092]
[1646514360873,3.2402704,2664.6,2664.4,0.54]
[1646514362514,3.2402704,2664.6,2664.5,0.93832]
[1646514362716,3.2402704,2664.6,2664.5,1.47832]
[1646514364420,3.2402704,2664.6,2664.5,0.54]
[1646514365420,3.2402704,2664.6,2664.5,11.93]
[1646514365622,3.2402704,2664.6,2664.5,13.86832]
[1646514365877,3.20507261,2664.6,2664.5,13.86832]
[1646514366471,2.88456535,2664.6,2664.5,15.01672]
[1646514368676,2.88456535,2664.6,2664.5,3.62672]
[1646514368876,2.88456535,2664.6,2664.5,1.54]
[1646514369281,2.88456535,2664.6,2664.5,0.54]
[1646514370218,0.00328473,2665.2,2664.6,5.0]
[1646514370421,1.1411,2665.8,2664.8,5.0]
[1646514370422,1.09438473,2665.8,2664.8,5.0]
[1646514370620,1.5379956,2665.7,2664.9,0.54]
[1646514370821,3.39559706,2666.1,2664.9,0.54]
[1646514371019,1.53797999,2666.0,2665.0,1.1864]
[1646514371219,1.53797999,2666.0,2665.1,0.54]
[1646514371419,1.02975368,2665.7,2665.1,0.54]
[1646514371619,0.40539706,2666.1,2665.1,0.54]
[1646514371824,1.53792627,2666.0,2665.1,0.54]
[1646514372718,5.03792627,2666.0,2665.1,0.54]
[1646514372920,1.53792627,2665.9,2664.8,0.1875]
[1646514373120,3.5,2665.8,2664.6,1.8466]
[1646514373377,1.53792627,2665.7,2664.6,1.8466]
[1646514373565,0.95912236,2665.1,2664.6,1.8466]
[1646514373767,1.36445664,2665.1,2664.5,1.1528628]
[1646514374572,1.36445664,2665.1,2664.5,1.15431942]
[1646514375674,0.95912236,2665.1,2664.5,1.1506]
[1646514375873,0.95912236,2665.1,2664.5,1.15431942]
[1646514376272,4.65912236,2665.1,2664.5,1.15431942]
[1646514376474,4.65912236,2665.1,2664.6,0.1875]
[1646514377119,4.65912236,2665.1,2664.6,0.7275]
[1646514378021,3.7,2665.1,2664.6,0.7275]
[1646514379024,1.12956674,2665.0,2664.6,0.7275]
[1646514379629,1.12956674,2665.0,2664.6,0.1875]
[1646514379826,1.12956674,2665.0,2664.7,0.01751776]
[1646514380026,4.62956674,2665.0,2664.7,0.01751776]
[1646514380226,1.12956674,2665.0,2664.7,0.01751776]
[1646514380625,4.62956674,2665.0,2664.7,0.01751776]
[1646514380896,1.12956674,2665.0,2664.7,0.01751776]
[1646514382095,4.62956674,2665.0,2664.7,0.01751776]
[1646514382297,3.5,2664.9,2664.7,0.01751776]
[1646514382595,1.53848222,2664.8,2664.7,0.01751776]
[1646514382798,4.0,2664.7,2664.3,7.37]
[1646514382996,3.5,2664.6,2664.3,7.37]
[1646514383196,3.5,2664.6,2664.5,0.00347143]
[1646514383395,5.03855749,2664.6,2664.5,0.00347143]
[1646514383695,0.01022564,2664.4,2664.0,7.38599648]
[1646514383898,1.53855749,2664.3,2664.0,7.38599648]
[1646514384097,1.53855749,2664.3,2664.0,0.01599648]
[1646514384298,3.51022564,2664.4,2664.0,0.01599648]
[1646514384726,1.21730134,2664.1,2664.0,0.01599648]
[1646514386125,0.01022564,2664.4,2664.0,0.01599648]
[1646514386522,3.7,2664.1,2664.0,0.01599648]
[1646514389576,3.72186097,2664.1,2664.0,0.01599648]
[1646514390279,3.62186097,2664.1,2664.0,0.01599648]
[1646514398987,3.62186097,2664.1,2663.9,1.0168961]
[1646514399185,3.62186097,2664.1,2663.9,0.0168961]
[1646514399387,3.62186097,2664.1,2663.9,4.0568961]
[1646514399639,3.62186097,2664.1,2664.0,3.5]
[1646514399836,3.62186097,2664.1,2664.0,4.04]
[1646514400034,3.62186097,2664.1,2664.0,5.04]
[1646514400239,3.62186097,2664.1,2664.0,4.94]
[1646514402959,0.01022564,2664.4,2664.1,5.0]
[1646514403239,0.01022564,2664.4,2664.2,4.97846]
[1646514403467,0.01022564,2664.4,2664.3,3.5]
[1646514403669,0.01022564,2664.4,2664.3,4.04]
[1646514403872,0.01022564,2664.4,2664.3,6.14501627]
[1646514406278,0.01022564,2664.4,2664.3,5.04]
[1646514406480,0.01022564,2664.4,2664.3,1.54]
[1646514406879,0.01022564,2664.4,2664.3,0.54]
[1646514407129,0.01022564,2664.4,2664.2,2.23436934]
[1646514407321,0.01022564,2664.4,2664.2,0.00346934]
[1646514408125,0.01022564,2664.4,2663.9,0.0133758]
[1646514408326,0.01022564,2664.4,2664.2,0.00346938]
[1646514409426,0.01022564,2664.4,2663.9,0.0133758]
[1646514409626,0.01022564,2664.4,2664.2,0.00346938]
[1646514409826,0.02984576,2664.4,2664.2,0.00346938]
[1646514410432,0.02984576,2664.4,2664.1,0.54]
[1646514410869,0.02984576,2664.4,2664.2,0.00346948]
[1646514411771,0.02984576,2664.4,2664.1,0.54]
[1646514411971,0.02984576,2664.4,2664.2,0.00346948]
[1646514412980,0.02984576,2664.4,2663.9,0.5533758]
[1646514413175,0.02984576,2664.4,2664.2,0.00325353]
[1646514414182,0.02984576,2664.4,2664.1,0.54]
[1646514414380,0.02984576,2664.4,2664.2,0.00325361]
[1646514414638,0.02984576,2664.4,2664.2,0.54325361]
[1646514414829,0.02984576,2664.4,2664.3,3.5]
[1646514415030,0.02984576,2664.4,2664.3,4.04]
[1646514415229,0.02984576,2664.4,2664.3,5.04]
[1646514419778,0.02984576,2664.4,2664.3,1.54]
[1646514420179,0.02984576,2664.4,2664.3,0.54]
[1646514421178,1.02984576,2664.4,2664.3,0.54]
[1646514421579,1.02984576,2664.4,2664.2,0.00327526]
[1646514422427,1.02984576,2664.4,2663.9,1.7887758]
[1646514422826,1.02984576,2664.4,2664.2,0.0032753]
[1646514423627,1.02984576,2664.4,2663.9,1.7420511]
[1646514424027,1.02984576,2664.4,2664.2,0.0032753]
[1646514424426,1.43523599,2664.4,2664.2,0.0032753]
[1646514424629,1.43490572,2664.4,2664.2,0.0032753]
[1646514424927,1.02984576,2664.4,2663.9,1.7420511]
[1646514425727,1.02984576,2664.4,2664.0,3.5]
[1646514426175,1.02984576,2664.4,2664.0,5.04]
[1646514426375,1.02984576,2664.4,2664.0,4.99]
[1646514427278,1.02984576,2664.4,2664.0,8.74374]
[1646514427477,1.02984576,2664.4,2664.1,0.00355998]
[1646514427678,1.02984576,2664.4,2664.2,0.54]
[1646514427877,1.02984576,2664.4,2664.3,3.5]
[1646514428077,1.02984576,2664.4,2664.3,4.04]
[1646514428279,1.02984576,2664.4,2664.3,5.04]
[1646514430324,0.98862331,2664.4,2664.3,5.04]
[1646514431427,0.6213831,2664.4,2664.3,5.04]
[1646514432828,0.6213831,2664.4,2664.3,5.60529734]
[1646514433040,0.58763152,2664.4,2664.3,5.60529734]
[1646514434478,0.58763152,2664.4,2664.3,5.6505854]
[1646514434882,0.58763152,2664.4,2664.3,5.08528806]
[1646514435482,1.58763152,2664.4,2664.3,5.08528806]
[1646514435684,1.58763152,2664.4,2664.3,1.58528806]
[1646514436083,1.58763152,2664.4,2664.3,0.58528806]
[1646514437436,1.58763152,2664.4,2664.3,0.04528806]
[1646514439043,1.58763152,2664.4,2664.3,0.0225137]
[1646514442081,1.58763152,2664.4,2664.3,0.5625137]
[1646514443985,1.58763152,2664.4,2664.3,4.0625137]
[1646514444191,1.58763152,2664.4,2664.3,5.63400392]
[1646514444388,0.00326178,2664.7,2664.5,5.0]
[1646514444655,0.00326178,2664.7,2664.6,4.04]
[1646514444845,0.00326178,2664.7,2664.6,5.04]
[1646514445245,0.00326178,2664.7,2664.6,1.54]
[1646514445445,0.3751,2665.4,2664.6,0.54]
[1646514445645,3.5,2665.8,2665.0,1.17773565]
[1646514445845,1.5379935,2665.7,2664.9,2.4164727]
[1646514446045,1.5379935,2665.6,2664.9,2.4164727]
[1646514446251,1.1550661,2665.9,2665.0,3.26676453]
[1646514446252,1.5379935,2665.5,2665.0,3.26676453]
[1646514446447,1.1550661,2665.9,2665.1,0.54]
[1646514446849,0.00326148,2665.4,2665.1,0.54]
[1646514447848,1.53799461,2665.8,2665.1,0.54]
[1646514448047,0.00326148,2665.4,2665.1,0.54]
[1646514448890,0.40576275,2665.4,2664.8,0.54]
[1646514449293,0.40902423,2665.4,2665.2,0.02232203]
[1646514450093,0.40576275,2665.4,2665.2,0.02232203]
[1646514450291,1.53818251,2665.3,2665.2,0.02232203]
[1646514451191,0.40902414,2665.4,2665.2,0.02232203]
[1646514451392,1.53819705,2665.3,2665.2,0.02232203]
[1646514454034,1.53819705,2665.3,2665.1,0.04519905]
[1646514454238,0.02056834,2665.1,2664.3,3.2854]
[1646514454639,0.02056834,2665.1,2664.3,2.2854]
[1646514454838,0.86469053,2664.6,2664.3,2.2854]
[1646514455038,0.86469053,2664.6,2664.1,3.86138102]
[1646514455242,0.86469053,2664.6,2664.1,3.86316279]
[1646514455640,0.86469053,2664.6,2664.1,1.00326279]
[1646514455876,0.00326185,2664.8,2664.1,0.00326279]
[1646514456078,0.02056834,2665.1,2664.0,4.3883]
[1646514456278,0.02056834,2665.1,2664.1,0.00148102]
[1646514456479,0.00326186,2664.7,2664.1,0.00474364]
[1646514457284,0.92074775,2664.7,2664.1,0.00474364]
[1646514457479,0.91748589,2664.7,2664.1,0.00148102]
[1646514457680,0.9207478,2664.7,2664.1,0.00326267]
[1646514458582,0.91748589,2664.7,2664.0,0.54]
[1646514458781,0.91748589,2664.7,2664.1,0.00326267]
[1646514458782,0.9207478,2664.7,2664.1,0.00326267]
[1646514459635,0.9207478,2664.7,2664.0,0.49326267]
[1646514459834,0.91748589,2664.7,2664.0,0.49326267]
[1646514460032,0.9207478,2664.7,2664.1,0.00326267]
[1646514460231,0.00326191,2664.7,2664.1,1.48178267]
[1646514460430,0.00326191,2664.7,2664.2,1.8768916]
[1646514460632,0.00326191,2664.7,2664.3,0.54]
[1646514461031,0.02182495,2664.8,2664.3,0.54]
[1646514461330,0.0012596,2664.6,2664.5,1.23193938]
[1646514461530,0.0012596,2664.6,2664.5,1.77193938]
[1646514462129,0.02182495,2664.8,2664.5,1.77193938]
[1646514462330,0.0012596,2664.7,2664.5,1.77193938]
[1646514463381,0.02182495,2664.8,2664.5,1.77193938]
[1646514463582,0.00350131,2664.7,2664.5,1.77193938]
[1646514463983,0.00350131,2664.7,2664.5,0.54]
[1646514464585,0.02182495,2664.8,2664.5,0.54]
[1646514464789,0.00356553,2664.7,2664.5,0.54]
[1646514465687,0.02182495,2664.8,2664.5,0.54]
[1646514466088,0.00356553,2664.7,2664.5,0.54]
[1646514467137,0.02182495,2664.8,2664.5,0.54]
[1646514467334,0.00356553,2664.7,2664.5,0.54]
[1646514468235,0.02182495,2664.8,2664.5,0.54]
[1646514468433,0.00336607,2664.7,2664.5,0.54]
[1646514469336,0.02182495,2664.8,2664.5,0.54]
[1646514469535,0.02182495,2664.8,2664.1,5.82818102]
[1646514469737,0.00336607,2664.7,2664.1,5.82818102]
[1646514470436,0.89239824,2664.4,2664.1,2.98578102]
[1646514470735,0.89239824,2664.4,2664.1,1.9843]
[1646514470984,0.89239824,2664.4,2664.1,2.9843]
[1646514471185,0.89239824,2664.4,2664.1,1.9843]
[1646514471985,0.00325145,2664.6,2664.1,1.9843]
[1646514472991,1.06780479,2664.6,2664.1,1.9843]
[1646514473190,0.0032515,2664.6,2664.1,1.9843]
[1646514474193,0.5234,2664.7,2664.1,1.9843]
[1646514474391,0.0032515,2664.6,2664.1,1.9843]
[1646514474639,0.02524938,2664.4,2664.1,1.9843]
[1646514475833,0.43033155,2664.4,2664.1,1.9843]
[1646514476035,0.43033155,2664.4,2664.0,0.00326768]
[1646514476633,0.43033155,2664.4,2663.8,0.01966512]
[1646514476831,0.43033155,2664.4,2664.0,0.00326765]
[1646514477832,1.01028493,2664.2,2663.8,0.01966512]
[1646514478138,1.01028493,2664.2,2663.8,0.0181841]
[1646514479379,1.01028493,2664.2,2663.9,0.00326225]
[1646514480186,1.01028493,2664.2,2663.8,0.0181841]
[1646514480385,0.43033155,2664.4,2663.8,0.0181841]
[1646514480588,0.43033155,2664.4,2663.9,0.00326221]
[1646514480791,0.00504202,2664.0,2663.9,0.00326221]
[1646514481386,0.00504202,2664.0,2663.8,0.0181841]
[1646514481588,0.00395503,2664.0,2663.8,0.0181841]
[1646514482827,0.00395503,2664.0,2663.8,0.02144502]
[1646514483827,0.00395503,2664.0,2663.8,0.0181841]
[1646514484027,0.00395503,2664.0,2663.8,0.02144502]
[1646514485032,0.00395503,2664.0,2663.8,0.0181841]
[1646514485433,0.00395503,2664.0,2663.8,0.02144502]
[1646514486281,0.00395503,2664.0,2663.8,0.0181841]
[1646514489831,0.02266189,2664.0,2663.8,0.0181841]
[1646514490032,0.02266189,2664.0,2663.8,0.02180172]
[1646514491138,0.02266189,2664.0,2663.8,0.0181841]
[1646514491333,0.02266189,2664.0,2663.8,0.02180172]
[1646514492333,0.02266189,2664.0,2663.8,0.0181841]
[1646514492535,0.02266189,2664.0,2663.8,0.02180172]
[1646514493377,0.02266189,2664.0,2663.8,0.0181841]
[1646514493783,0.02266189,2664.0,2663.8,0.02166007]
[1646514494681,0.02266189,2664.0,2663.8,0.0181841]
[1646514494886,0.02266189,2664.0,2663.8,0.02154069]
[1646514495885,0.02266189,2664.0,2663.8,0.0181841]
[1646514496085,0.02266189,2664.0,2663.8,0.02154069]
[1646514496987,0.02266189,2664.0,2663.8,0.0181841]
[1646514497242,0.02266189,2664.0,2663.8,0.02155413]